bitfinex/quotes_BTCUSD_20250219
["timestamp","ask_amount","ask_price","bid_price","bid_amount"]
[1739937672142,0.00799149,96007.0,96001.0,0.28342999]
[1739937672351,0.00799149,96007.0,96001.0,0.20163696]
[1739937672546,0.00799149,96007.0,96001.0,0.14953696]
[1739937672804,0.00799149,96007.0,96001.0,0.08583696]
[1739937673408,0.15,96005.0,96001.0,0.08883696]
[1739937674239,0.15,96005.0,96001.0,0.08583696]
[1739937674595,0.15,96003.0,96001.0,0.08583696]
[1739937675027,0.252357,96002.0,96001.0,0.08583696]
[1739937675223,0.15,96002.0,96001.0,0.08583696]
[1739937676915,0.152,96002.0,96001.0,0.08583696]
[1739937677875,0.15,96002.0,96001.0,0.08583696]
[1739937678243,0.151,96002.0,96001.0,0.08583696]
[1739937679338,0.151,96002.0,96001.0,0.02450696]
[1739937679637,0.001,96002.0,95992.0,1e-08]
[1739937680481,0.001,96002.0,95992.0,0.01505511]
[1739937680685,0.19829275,96036.0,95992.0,0.01505511]
[1739937680890,1.298638,96035.0,95992.0,0.01505511]
[1739937681088,0.001,96002.0,95992.0,0.01505511]
[1739937682397,0.00775662,95993.0,95992.0,0.01518644]
[1739937682786,0.00775662,95993.0,95992.0,0.01618644]
[1739937683163,0.00775662,95993.0,95992.0,0.01518644]
[1739937683796,0.00775662,95993.0,95992.0,0.00013134]
[1739937684010,0.00775662,95993.0,95992.0,0.00213134]
[1739937685573,0.00775662,95993.0,95992.0,0.00013134]
[1739937685771,0.00775662,95993.0,95992.0,0.00213134]
[1739937689218,0.00775662,95993.0,95992.0,0.00013134]
[1739937689400,0.00775662,95993.0,95992.0,0.00213134]
[1739937689737,0.00775662,95993.0,95992.0,0.02513134]
[1739937690681,0.00775662,95993.0,95992.0,0.02313134]
[1739937691057,0.00775662,95993.0,95992.0,0.02413134]
[1739937691269,0.00775662,95993.0,95992.0,0.02498234]
[1739937691718,0.00775662,95993.0,95992.0,0.04023567]
[1739937695816,0.00775662,95993.0,95992.0,0.16617733]
[1739937696248,0.0004255,96002.0,95994.0,0.0797]
[1739937696402,0.0004255,96002.0,95992.0,0.01827732]
[1739937696403,0.0004255,96002.0,95998.0,0.023]
[1739937696608,0.0004255,96002.0,96001.0,0.023]
[1739937696829,0.0004255,96002.0,96001.0,0.1051]
[1739937697506,0.0004255,96002.0,96001.0,0.15234145]
[1739937698607,0.0004255,96002.0,96001.0,0.15534145]
[1739937699032,0.0004255,96002.0,96001.0,0.15234145]
[1739937699490,0.00839229,96002.0,96001.0,0.15634145]
[1739937699786,0.00839229,96002.0,96001.0,0.20339415]
[1739937700664,0.00839229,96002.0,96001.0,0.1553]
[1739937704846,0.19829275,96048.0,96002.0,0.0798]
[1739937704847,0.0069926,96048.0,96002.0,0.0798]
[1739937705050,0.0069926,96048.0,96007.0,0.023]
[1739937705051,0.02087427,96037.0,96007.0,0.023]
[1739937705274,0.15,96035.0,96009.0,0.0798]
[1739937705496,0.90632,96034.0,96010.0,0.02404142]
[1739937705699,0.15,96032.0,96010.0,0.02404142]
[1739937705908,0.15,96030.0,96010.0,0.023]
[1739937706036,0.15,96028.0,96010.0,0.023]
[1739937706241,0.15,96026.0,96010.0,0.023]
[1739937706552,0.15,96026.0,96012.0,0.023]
[1739937706978,0.01633387,96023.0,96012.0,0.023]
[1739937708589,0.01833387,96023.0,96012.0,0.023]
[1739937711082,0.00788944,96013.0,96012.0,0.023]
[1739937711810,0.02422355,96013.0,96012.0,0.023]
[1739937713509,0.00788944,96013.0,96012.0,0.023]
[1739937713708,0.00788944,96013.0,96012.0,0.024]
[1739937714058,0.00788944,96013.0,96012.0,0.001]
[1739937716634,0.02422359,96013.0,96012.0,0.001]
[1739937717702,0.02422359,96013.0,96002.0,0.29498174]
[1739937717909,0.02422359,96013.0,96002.0,0.28034545]
[1739937718717,0.02422359,96013.0,96002.0,0.17607728]
[1739937718936,0.02422359,96013.0,96002.0,0.17707728]
[1739937719327,0.02422359,96013.0,96002.0,0.13751728]
[1739937720444,0.00104148,96012.0,96002.0,0.06685728]
[1739937720650,0.15,96011.0,96002.0,0.06685728]
[1739937720882,0.14990793,96009.0,96002.0,0.06585728]
[1739937721094,1.14317448,96008.0,95982.0,0.03212728]
[1739937721304,1.298638,96007.0,95982.0,0.03212728]
[1739937721611,0.07684148,96006.0,95979.0,0.0478]
[1739937721812,0.01633748,96001.0,95980.0,0.0373251]
[1739937721953,1.29967948,96000.0,95980.0,0.0373251]
[1739937722151,1.298638,95999.0,95976.0,0.3246]
[1739937722359,0.00104148,95998.0,95976.0,0.3246]
[1739937722594,1.298638,95997.0,95976.0,0.3246]
[1739937722759,0.0076826,95981.0,95976.0,0.3246]
[1739937723103,0.0076826,95981.0,95970.0,0.0463]
[1739937724099,0.0076826,95981.0,95972.0,0.0767]
[1739937724295,0.0076826,95981.0,95970.0,0.0463]
[1739937724557,0.00863826,95980.0,95973.0,0.006851]
[1739937724784,0.0076826,95981.0,95963.0,0.3246]
[1739937725102,0.0086826,95981.0,95973.0,0.005]
[1739937725333,0.01633958,95977.0,95964.0,0.0447851]
[1739937725742,0.01633958,95977.0,95964.0,0.04491641]
[1739937727065,0.01633958,95977.0,95964.0,0.04576741]
[1739937727511,0.01633958,95977.0,95965.0,0.00104187]
[1739937727712,0.01633958,95977.0,95966.0,0.04946603]
[1739937728292,0.01633958,95977.0,95967.0,0.00104187]
[1739937728499,0.01633958,95977.0,95969.0,0.023]
[1739937728702,0.01633958,95977.0,95970.0,0.00104181]
[1739937728897,0.01633958,95977.0,95971.0,0.00104181]
[1739937729111,0.01633958,95977.0,95972.0,0.0764]
[1739937729479,0.01633958,95977.0,95973.0,0.00104181]
[1739937729899,0.00104148,96002.0,95972.0,0.0764]
[1739937730116,0.01633894,95977.0,95972.0,0.0764]
[1739937730329,0.00781695,95982.0,95972.0,0.0764]
[1739937730747,0.01633908,95976.0,95973.0,0.0173066]
[1739937731483,0.01633908,95976.0,95962.0,0.0763]
[1739937733139,0.00781695,95982.0,95962.0,0.0763]
[1739937733339,0.15,95980.0,95962.0,0.0763]
[1739937733544,0.15,95978.0,95962.0,0.0763]
[1739937733945,0.15,95978.0,95964.0,0.0020242]
[1739937734149,0.15,95978.0,95965.0,0.04865941]
[1739937734558,0.00781695,95982.0,95965.0,0.04865941]
[1739937735542,0.00781695,95982.0,95965.0,0.04861752]
[1739937735883,0.00781695,95982.0,95964.0,0.00098231]
[1739937736397,0.01633973,95978.0,95964.0,0.00098231]
[1739937737805,0.01633973,95978.0,95964.0,0.00202419]
[1739937738010,0.01633973,95978.0,95964.0,0.00098231]
[1739937738586,0.01633973,95978.0,95965.0,0.00104188]
[1739937738787,0.01633973,95978.0,95965.0,0.0486594]
[1739937740624,0.01633973,95978.0,95966.0,0.0807]
[1739937740828,0.01633973,95978.0,95968.0,0.023]
[1739937741030,0.01633973,95978.0,95970.0,0.023]
[1739937741227,0.01633973,95978.0,95974.0,0.023]
[1739937741385,0.01633973,95978.0,95975.0,0.04674175]
[1739937741588,0.01633973,95978.0,95977.0,0.10674464]
[1739937741792,0.01633973,95978.0,95977.0,0.23418626]
[1739937741990,0.0004255,96006.0,95981.0,0.023]
[1739937742247,0.0004255,96006.0,95992.0,0.023]
[1739937742390,0.0004255,96006.0,95995.0,0.023]
[1739937742590,0.0004255,96006.0,95996.0,0.0010415]
[1739937743726,0.0004255,96006.0,95995.0,0.023]
[1739937746925,0.0004255,96006.0,95994.0,0.0785]
[1739937747377,0.0004255,96006.0,95994.0,0.09109]
[1739937747589,0.0004255,96006.0,95995.0,0.00056239]
[1739937749510,0.0004255,96006.0,95994.0,0.09109]
[1739937751923,0.01633505,96004.0,95994.0,0.09109]
[1739937753089,0.01633505,96004.0,95994.0,0.0926524]
[1739937753317,0.01633505,96004.0,95995.0,0.01400524]
[1739937753926,0.01633505,96004.0,95996.0,0.00056241]
[1739937754407,0.01633505,96004.0,95995.0,0.01400524]
[1739937754617,0.01633505,96004.0,95995.0,0.01500524]
[1739937755534,0.01633505,96004.0,95996.0,0.0005624]
[1739937755757,0.01633505,96004.0,95997.0,0.01414676]
[1739937755987,0.01633505,96004.0,95998.0,0.00056241]
[1739937757287,0.01633505,96004.0,95998.0,0.00156241]
[1739937757459,0.01633505,96004.0,95998.0,0.001]
[1739937759244,0.01633505,96004.0,95990.0,0.0474]
[1739937759927,0.01633505,96004.0,95990.0,0.06011]
[1739937762741,0.01933505,96004.0,95990.0,0.06011]
[1739937763226,0.003,96004.0,95990.0,0.06011]
[1739937763996,0.15,96002.0,95990.0,0.000851]
[1739937764251,0.15,96000.0,95990.0,0.000851]
[1739937764521,0.15,95998.0,95990.0,0.000851]
[1739937764778,0.15,95996.0,95990.0,0.000851]
[1739937765014,0.15130215,95996.0,95990.0,0.000851]
[1739937765218,0.15,95994.0,95990.0,0.000851]
[1739937766079,0.0061638,96015.0,95990.0,0.000851]
[1739937766283,0.00770762,95991.0,95990.0,0.000851]
[1739937766818,0.02404544,95991.0,95990.0,0.000851]
[1739937767404,0.02404544,95991.0,95990.0,0.001851]
[1739937767614,0.02404544,95991.0,95990.0,0.000851]
[1739937767957,0.02404544,95991.0,95990.0,0.002851]
[1739937769383,0.02404544,95991.0,95990.0,0.000851]
[1739937771862,0.00770762,95991.0,95990.0,0.000851]
[1739937773352,1.36521362,95991.0,95990.0,0.000851]
[1739937773560,1.00265462,95991.0,95990.0,0.000851]
[1739937774223,0.15,95990.0,95973.0,0.0824]
[1739937774427,1.448638,95990.0,95973.0,0.0824]
[1739937774638,0.15,95988.0,95973.0,0.0824]
[1739937774836,0.15,95986.0,95973.0,0.0824]
[1739937775041,0.15,95984.0,95973.0,0.0824]
[1739937775244,0.00073932,95983.0,95973.0,0.0824]
[1739937775457,0.00073932,95983.0,95973.0,0.0952]
[1739937775997,0.00073932,95983.0,95973.0,0.0962]
[1739937776243,0.00073932,95983.0,95973.0,0.0952]
[1739937776439,0.00770762,95991.0,95973.0,0.0952]
[1739937776440,0.00073932,95990.0,95973.0,0.0952]
[1739937776698,0.15,95988.0,95973.0,0.0982]
[1739937776901,0.15,95986.0,95974.0,0.00982]
[1739937777023,0.15,95984.0,95974.0,0.00982]
[1739937777216,0.00073932,95983.0,95974.0,0.00982]
[1739937777443,0.00073932,95983.0,95974.0,0.0053]
[1739937779224,0.00073932,95990.0,95974.0,0.0083]
[1739937779396,1.44937732,95989.0,95974.0,0.0053]
[1739937779608,0.15,95987.0,95974.0,0.0053]
[1739937779809,0.15,95985.0,95974.0,0.0083]
[1739937780007,0.15,95983.0,95974.0,0.0053]
[1739937780212,0.00073932,95982.0,95975.0,0.01005]
[1739937780451,0.15,95983.0,95975.0,0.01005]
[1739937781018,0.00073932,95982.0,95974.0,0.002]
[1739937781226,0.00073932,95990.0,95974.0,0.002]
[1739937781423,0.15,95988.0,95974.0,0.002]
[1739937781620,0.15,95986.0,95974.0,0.002]
[1739937781856,0.15,95984.0,95974.0,0.002]
[1739937781998,0.15,95982.0,95974.0,0.002]
[1739937782199,0.15,95982.0,95974.0,0.00844]
[1739937782431,0.15,95982.0,95973.0,0.07450106]
[1739937782598,0.15,95982.0,95975.0,0.003]
[1739937782802,0.15,95982.0,95973.0,0.07450106]
[1739937783160,0.15073932,96000.0,95974.0,0.003]
[1739937783377,0.15073932,96000.0,95975.0,0.00775011]
[1739937783378,0.15,95989.0,95975.0,0.00775011]
[1739937783725,0.15,95989.0,95975.0,0.01075011]
[1739937783971,0.15,95989.0,95975.0,0.00775011]
[1739937784426,0.15073932,96000.0,95975.0,0.00775011]
[1739937784671,0.15,95987.0,95975.0,0.00775011]
[1739937785102,0.15,95985.0,95976.0,0.023]
[1739937785334,0.15,95983.0,95976.0,0.023]
[1739937785526,0.15,95981.0,95976.0,0.023]
[1739937785727,0.15,95981.0,95974.0,0.023]
[1739937786029,0.15,95981.0,95975.0,0.001]
[1739937786487,0.15,95981.0,95974.0,0.023]
[1739937786624,0.15,95981.0,95973.0,0.07450106]
[1739937786625,0.01633869,95983.0,95976.0,0.026]
[1739937786819,0.01633869,95983.0,95976.0,0.023]
[1739937787026,0.15,95981.0,95974.0,0.023]
[1739937787224,0.15,95981.0,95976.0,0.023]
[1739937788036,0.15,95981.0,95974.0,0.023]
[1739937788453,0.01633869,95983.0,95974.0,0.023]
[1739937788715,0.15,95981.0,95974.0,0.023]
[1739937789599,0.15,95979.0,95966.0,0.0204512]
[1739937789887,0.15,95977.0,95966.0,0.02058251]
[1739937790118,0.15,95977.0,95976.0,0.003]
[1739937790541,0.15,95975.0,95966.0,0.02058251]
[1739937790748,0.15,95975.0,95974.0,0.004]
[1739937790957,0.15,95975.0,95966.0,0.02058251]
[1739937791251,0.16633948,95975.0,95966.0,0.02058251]
[1739937791993,0.01633948,95975.0,95966.0,0.02058251]
[1739937792602,0.01633948,95975.0,95966.0,0.10268251]
[1739937793016,0.01633948,95975.0,95974.0,0.005]
[1739937793405,0.00116492,95982.0,95966.0,0.00013131]
[1739937793599,0.15,95980.0,95966.0,0.00513131]
[1739937793842,0.15,95978.0,95966.0,0.00513131]
[1739937794046,0.15,95976.0,95966.0,0.00013131]
[1739937794249,0.00073932,95975.0,95974.0,0.005]
[1739937794450,0.15,95976.0,95966.0,0.00013131]
[1739937794655,0.00073932,95975.0,95966.0,0.00013131]
[1739937795052,0.01605581,95975.0,95966.0,0.00013131]
[1739937795203,0.15,95973.0,95966.0,0.00013131]
[1739937795408,0.15,95971.0,95966.0,0.00013131]
[1739937795595,0.15,95969.0,95966.0,0.00013131]
[1739937795792,0.15,95967.0,95966.0,0.00013131]
[1739937796239,0.16634095,95967.0,95966.0,0.00013131]
[1739937796893,0.01634095,95967.0,95966.0,0.00013131]
[1739937797267,0.02413072,95967.0,95966.0,0.00013131]
[1739937797473,0.02413072,95967.0,95966.0,0.08303131]
[1739937797684,0.02413072,95967.0,95966.0,0.08603131]
[1739937797890,0.02413072,95967.0,95966.0,0.08303131]
[1739937798291,0.02413072,95967.0,95966.0,0.08603131]
[1739937799131,0.02413072,95967.0,95966.0,0.10903131]
[1739937801587,0.02413072,95967.0,95966.0,0.10945681]
[1739937802611,0.02413072,95967.0,95966.0,0.02655681]
[1739937803220,0.00778977,95967.0,95966.0,0.02655681]
[1739937803422,0.00778977,95967.0,95966.0,0.02355681]
[1739937803858,0.00778977,95967.0,95966.0,0.02655681]
[1739937804626,0.00073932,95978.0,95967.0,0.023]
[1739937804826,0.15,95976.0,95967.0,0.023]
[1739937805024,0.15,95974.0,95966.0,0.00255681]
[1739937805233,0.15,95972.0,95966.0,0.00255681]
[1739937805451,0.15,95970.0,95966.0,0.00255681]
[1739937805654,0.00073932,95969.0,95966.0,0.00255681]
[1739937806061,0.15,95970.0,95966.0,0.00255681]
[1739937806062,0.02546627,95980.0,95966.0,0.00255681]
[1739937806294,1.298638,95979.0,95966.0,0.00255681]
[1739937806514,1.298638,95979.0,95966.0,0.00055681]
[1739937806711,0.001,95976.0,95966.0,0.00055681]
[1739937806863,1.258405,95975.0,95966.0,0.00055681]
[1739937807383,1.298638,95979.0,95966.0,0.00055681]
[1739937807593,0.0163408,95973.0,95966.0,0.00055681]
[1739937807805,1.133372,95972.0,95966.0,0.00055681]
[1739937808203,0.15,95971.0,95966.0,0.00055681]
[1739937808409,0.15,95969.0,95966.0,0.00055681]
[1739937809541,0.15,95967.0,95955.0,0.0799]
[1739937809751,0.15,95965.0,95954.0,0.0074]
[1739937809920,0.15,95963.0,95930.0,0.24101591]
[1739937810064,0.15,95961.0,95932.0,0.00104219]
[1739937810267,1.298638,95962.0,95932.0,0.00104219]
[1739937810268,0.15,95959.0,95932.0,0.00104219]
[1739937810472,0.15,95957.0,95932.0,0.00104219]
[1739937810699,0.15,95955.0,95932.0,0.00104219]
[1739937810899,0.15,95953.0,95930.0,0.24101591]
[1739937811099,0.15,95951.0,95930.0,0.24101591]
[1739937811305,0.15,95951.0,95943.0,0.0024254]
[1739937811479,0.15,95951.0,95944.0,0.023]
[1739937812712,0.01634284,95959.0,95945.0,0.023]
[1739937813055,0.15,95957.0,95945.0,0.03361254]
[1739937813387,0.15,95955.0,95945.0,0.03361254]
[1739937813587,0.001,95951.0,95945.0,0.03361254]
[1739937814054,0.001,95951.0,95945.0,0.03661254]
[1739937814212,0.001,95951.0,95945.0,0.026]
[1739937814419,0.05708,95964.0,95945.0,0.023]
[1739937814641,0.15,95962.0,95945.0,0.023]
[1739937814855,0.15,95960.0,95945.0,0.023]
[1739937815054,0.00776617,95955.0,95945.0,0.023]
[1739937815860,0.00776617,95955.0,95945.0,0.027]
[1739937816266,0.01634303,95953.0,95945.0,0.027]
[1739937817313,0.01634303,95953.0,95945.0,0.023]
[1739937817658,0.01634303,95953.0,95945.0,0.027]
[1739937823244,0.15,95977.0,95945.0,0.027]
[1739937823395,0.15,95967.0,95945.0,0.027]
[1739937823596,0.15,95965.0,95945.0,0.027]
[1739937823802,1.355638,95966.0,95945.0,0.027]
[1739937823803,0.15,95963.0,95945.0,0.027]
[1739937824046,0.057,95966.0,95945.0,0.027]
[1739937824047,0.15,95961.0,95945.0,0.027]
[1739937824275,0.15,95959.0,95945.0,0.023]
[1739937824485,0.15,95957.0,95945.0,0.023]
[1739937824697,0.15,95955.0,95945.0,0.023]
[1739937825789,0.0008512,95959.0,95945.0,0.023]
[1739937825984,0.15,95957.0,95945.0,0.023]
[1739937826187,0.15,95955.0,95945.0,0.023]
[1739937826571,0.15,95955.0,95945.0,0.025]
[1739937827037,0.15,95955.0,95945.0,0.023]
[1739937827250,0.0008512,95959.0,95945.0,0.027]
[1739937827487,0.01634266,95953.0,95945.0,0.027]
[1739937827987,0.01634266,95953.0,95945.0,0.023]
[1739937828437,0.01634266,95953.0,95945.0,0.025]
[1739937829742,0.01634266,95953.0,95945.0,0.023]
[1739937830186,0.01634266,95953.0,95945.0,0.027]
[1739937832403,0.01634266,95953.0,95948.0,0.0759]
[1739937832652,0.01634266,95953.0,95949.0,0.023]
[1739937833147,0.0008512,95959.0,95946.0,0.023]
[1739937833388,0.0008512,95959.0,95951.0,0.023]
[1739937834817,0.0008512,95959.0,95951.0,0.025]
[1739937836287,0.0008512,95959.0,95953.0,0.023]
[1739937836524,0.0008512,95959.0,95955.0,0.023]
[1739937836783,0.0008512,95959.0,95957.0,0.023]
[1739937836985,0.0008512,95959.0,95958.0,0.0991]
[1739937837470,0.01719374,95959.0,95958.0,0.0991]
[1739937838212,0.01719374,95959.0,95958.0,0.1011]
[1739937839943,0.01719374,95959.0,95958.0,0.025]
[1739937840389,0.16719374,95959.0,95958.0,0.025]
[1739937841823,0.16719374,95959.0,95958.0,0.002]
[1739937842466,1.11857974,95959.0,95958.0,0.002]
[1739937842669,1.11905074,95959.0,95958.0,0.002]
[1739937843194,1.1027082,95959.0,95958.0,0.002]
[1739937843600,1.0426032,95959.0,95958.0,0.002]
[1739937846167,1.0924032,95959.0,95958.0,0.002]
[1739937846369,0.15,95958.0,95944.0,0.0004256]
[1739937846566,1.448638,95958.0,95944.0,0.0004256]
[1739937846779,0.0674,95955.0,95944.0,0.0004256]
[1739937847010,0.15,95953.0,95944.0,0.0004256]
[1739937847248,0.15,95951.0,95944.0,0.0004256]
[1739937847451,0.15,95949.0,95944.0,0.0004256]
[1739937847679,0.15,95947.0,95944.0,0.0004256]
[1739937847910,0.15,95945.0,95944.0,0.0004256]
[1739937848144,1.448638,95945.0,95944.0,0.0004256]
[1739937850037,1.450638,95945.0,95944.0,0.0004256]
[1739937854303,0.966851,95945.0,95944.0,0.0004256]
[1739937854614,0.929137,95945.0,95944.0,0.0004256]
[1739937855087,0.368189,95945.0,95944.0,0.0004256]
[1739937855445,0.002,95945.0,95944.0,0.0004256]
[1739937856259,0.01834531,95945.0,95944.0,0.0004256]
[1739937857254,0.31758291,95954.0,95944.0,0.0004256]
[1739937857430,0.6473,95953.0,95944.0,0.0004256]
[1739937857579,0.01634551,95945.0,95944.0,0.0004256]
[1739937858009,0.01634551,95945.0,95944.0,0.1029256]
[1739937858219,0.01634551,95945.0,95944.0,0.12650938]
[1739937858624,0.01634551,95945.0,95944.0,0.12755155]
[1739937858972,0.01634551,95945.0,95944.0,0.17455155]
[1739937859359,0.01634551,95945.0,95944.0,0.17350938]
[1739937859833,0.01734551,95945.0,95944.0,0.1499256]
[1739937860036,0.01634551,95945.0,95944.0,0.1499256]
[1739937860345,0.01634551,95945.0,95944.0,0.1529256]
[1739937860558,0.01634551,95945.0,95944.0,0.1499256]
[1739937860981,0.01634551,95945.0,95944.0,0.1529256]
[1739937862195,0.01634551,95945.0,95944.0,0.1499256]
[1739937862370,0.01634551,95945.0,95944.0,0.1529256]
[1739937862729,0.01634551,95945.0,95944.0,0.1499256]
[1739937862936,0.01634551,95945.0,95944.0,0.1529256]
[1739937863136,0.0008512,95959.0,95945.0,0.023]
[1739937863381,0.15,95957.0,95945.0,0.023]
[1739937863590,0.15,95955.0,95945.0,0.023]
[1739937863787,0.15,95953.0,95945.0,0.023]
[1739937863988,0.15,95951.0,95945.0,0.023]
[1739937865232,0.0008512,95959.0,95945.0,0.023]
[1739937865370,0.151,95957.0,95945.0,0.023]
[1739937865554,0.15,95955.0,95945.0,0.023]
[1739937865756,0.15,95953.0,95945.0,0.0380351]
[1739937866002,0.15,95955.0,95945.0,0.0380351]
[1739937866003,0.15,95951.0,95945.0,0.0390351]
[1739937866200,0.15,95951.0,95945.0,0.023]
[1739937867103,0.0008512,95959.0,95945.0,0.023]
[1739937867507,0.01634416,95956.0,95945.0,0.024]
[1739937868714,0.01634416,95956.0,95945.0,0.023]
[1739937869116,0.01634416,95956.0,95945.0,0.024]
[1739937869315,0.01634416,95956.0,95945.0,0.023]
[1739937869773,0.01634416,95956.0,95945.0,0.0380351]
[1739937871063,0.00784097,95946.0,95945.0,0.0380351]
[1739937871794,0.02418513,95946.0,95945.0,0.023]
[1739937872162,0.02418513,95946.0,95945.0,0.026]
[1739937873200,0.00784097,95946.0,95945.0,0.026]
[1739937873720,0.0008512,95956.0,95945.0,0.10594224]
[1739937873947,0.0008512,95956.0,95946.0,0.00104212]
[1739937874165,0.0008512,95956.0,95948.0,0.023]
[1739937875257,0.0008512,95956.0,95948.0,0.03837931]
[1739937876359,0.01634313,95955.0,95948.0,0.03837931]
[1739937877491,0.01634313,95955.0,95948.0,0.03937931]
[1739937883475,0.0008512,95956.0,95948.0,0.03937931]
[1739937884387,0.0008512,95956.0,95948.0,0.03942143]
[1739937884706,0.0008512,95956.0,95950.0,0.023]
[1739937886586,0.01634331,95955.0,95950.0,0.023]
[1739937886809,0.01634331,95955.0,95950.0,0.024]
[1739937887010,0.01634331,95955.0,95950.0,0.023]
[1739937887559,0.01634331,95955.0,95947.0,0.0789]
[1739937887740,0.01634331,95955.0,95948.0,0.023]
[1739937888034,0.01634331,95955.0,95950.0,0.001]
[1739937888238,0.01634331,95955.0,95948.0,0.0214]
[1739937889415,0.01634331,95955.0,95948.0,0.0224]
[1739937890241,0.01634331,95955.0,95948.0,0.0214]
[1739937890428,0.01634331,95955.0,95948.0,0.03852943]
[1739937891842,0.01634331,95955.0,95948.0,0.0224]
[1739937893004,0.0008512,95956.0,95948.0,0.0224]
[1739937893206,0.38498291,95980.0,95948.0,0.0224]
[1739937893207,0.15,95979.0,95948.0,0.0224]
[1739937893385,0.0204462,95969.0,95948.0,0.02253121]
[1739937893527,0.15,95967.0,95948.0,0.02253121]
[1739937893734,0.15,95965.0,95950.0,0.023]
[1739937893927,0.15,95963.0,95950.0,0.023]
[1739937894129,0.15,95961.0,95950.0,0.023]
[1739937894353,0.15,95959.0,95950.0,0.023]
[1739937894551,0.15,95957.0,95950.0,0.023]
[1739937894755,0.15,95957.0,95950.0,0.03962786]
[1739937895791,0.0004256,95956.0,95950.0,0.03962786]
[1739937896914,0.0004256,95956.0,95952.0,0.023]
[1739937897559,0.0163433,95956.0,95952.0,0.023]
[1739937899382,0.0163433,95956.0,95952.0,0.024]
[1739937900318,0.0163433,95956.0,95952.0,0.03617359]
[1739937900599,0.0163433,95956.0,95952.0,0.024]
[1739937901051,0.01603065,95956.0,95952.0,0.024]
[1739937903098,0.02142655,95978.0,95952.0,0.024]
[1739937903298,0.15,95976.0,95952.0,0.024]
[1739937903554,0.15,95974.0,95952.0,0.024]
[1739937903706,0.15,95972.0,95952.0,0.024]
[1739937903936,0.15,95970.0,95952.0,0.024]
[1739937904175,0.02142655,95978.0,95952.0,0.00465101]
[1739937904376,0.15,95976.0,95952.0,0.00465101]
[1739937904573,0.0461,95973.0,95945.0,0.0826]
[1739937904780,0.15,95971.0,95945.0,0.04306387]
[1739937904983,0.15,95969.0,95952.0,0.001]
[1739937905306,0.0332,95972.0,95945.0,0.04306387]
[1739937905307,0.15,95967.0,95945.0,0.04306387]
[1739937905480,0.15,95965.0,95952.0,0.001]
[1739937905684,0.15,95963.0,95952.0,0.001]
[1739937905915,0.15,95961.0,95945.0,0.04306387]
[1739937906116,0.15,95961.0,95935.0,0.00104223]
[1739937906117,0.15,95961.0,95947.0,0.023]
[1739937906291,0.16634398,95961.0,95952.0,0.001]
[1739937906491,0.16634398,95961.0,95949.0,0.023]
[1739937906835,0.16634398,95961.0,95950.0,0.0004256]
[1739937907664,0.01634398,95961.0,95950.0,0.0004256]
[1739937907900,0.01634398,95961.0,95951.0,0.0759]
[1739937908115,0.01634398,95961.0,95953.0,0.0759]
[1739937908802,0.01634398,95961.0,95955.0,0.0759]
[1739937909040,0.01634398,95961.0,95956.0,0.023]
[1739937909265,0.01634398,95961.0,95957.0,0.0759]
[1739937909520,0.01634398,95961.0,95958.0,0.023]
[1739937909758,0.01634398,95961.0,95959.0,0.0759]
[1739937909988,0.01634398,95961.0,95960.0,0.03757]
[1739937910269,0.01634398,95961.0,95960.0,0.11347]
[1739937911857,0.01634398,95961.0,95960.0,0.0989]
[1739937913212,0.0008512,95970.0,95960.0,0.0989]
[1739937913449,0.15,95968.0,95960.0,0.06625471]
[1739937913679,0.15,95966.0,95960.0,0.06625471]
[1739937914947,0.002,95966.0,95960.0,0.06625471]
[1739937916403,0.01634258,95965.0,95960.0,0.06625471]
[1739937920189,0.01634258,95965.0,95960.0,0.04991186]
[1739937921645,0.15,95963.0,95947.0,0.023]
[1739937921919,0.15,95961.0,95948.0,0.03936605]
[1739937922165,0.15,95959.0,95949.0,0.023]
[1739937922402,0.15,95957.0,95949.0,0.023]
[1739937923283,0.15,95957.0,95950.0,0.0757]
[1739937923513,0.000851,95966.0,95950.0,0.0757]
[1739937923741,0.15,95964.0,95950.0,0.09409661]
[1739937924066,0.15,95962.0,95950.0,0.09409661]
[1739937924290,0.15,95960.0,95950.0,0.09409661]
[1739937924519,0.35464,95959.0,95950.0,0.09409661]
[1739937924721,0.34915,95958.0,95950.0,0.09409661]
[1739937924947,0.002,95964.0,95950.0,0.09409661]
[1739937925153,0.936894,95963.0,95950.0,0.09409661]
[1739937925284,0.924694,95963.0,95950.0,0.09409661]
[1739937925482,0.001,95960.0,95951.0,0.02023627]
[1739937925683,0.947025,95959.0,95951.0,0.02023627]
[1739937925895,0.263039,95959.0,95951.0,0.02023627]
[1739937926101,0.01634343,95958.0,95951.0,0.02023627]
[1739937929304,0.01634343,95958.0,95950.0,0.0757]
[1739937930963,0.280317,95957.0,95950.0,0.0757]
[1739937931182,0.15,95956.0,95950.0,0.0757]
[1739937932138,0.01634343,95958.0,95950.0,0.0757]
[1739937932339,0.15,95956.0,95950.0,0.0757]
[1739937933713,0.000851,95966.0,95950.0,0.0761255]
[1739937933910,0.15,95964.0,95950.0,0.0761255]
[1739937934054,0.15,95962.0,95950.0,0.0761255]
[1739937934261,0.15,95960.0,95950.0,0.0761255]
[1739937934457,0.15,95958.0,95950.0,0.0761255]
[1739937934687,0.15,95956.0,95950.0,0.0761255]
[1739937936354,0.01634476,95955.0,95950.0,0.0761255]
[1739937937191,0.01634476,95955.0,95950.0,0.08832805]
[1739937938607,0.15,95978.0,95950.0,0.08832805]
[1739937938841,0.0163447,95954.0,95950.0,0.08832805]
[1739937939059,0.0163447,95954.0,95951.0,0.1002]
[1739937939303,0.0163447,95954.0,95950.0,0.01262805]
[1739937939304,0.15,95976.0,95954.0,0.0772]
[1739937939507,0.15,95974.0,95954.0,0.0772]